[Event "Titled Tuesday Blitz July 18 Early 2023"]
[White "Petrosian, Karlen"]
[Black "Eugene, Floryan"]
[WhiteFideId "4176146"]
[BlackFideId "20694784"]
[WhiteElo "2602"]
[BlackElo "2690"]
[Result "1-0"]
[Round "7"]
[TimeControl "180+2"]
[Date "2023.07.18"]
[WhiteClock "0:00:48"]
[BlackClock "0:00:23"]
[Board "65"]

1. e4 {[%clk 0:02:57]}  c5 {[%clk 0:02:58]} 2. Be2 {[%clk 0:02:55]}  Nc6 {[%clk 0:02:55]} 3. f4 {[%clk 0:02:54]}  g6 {[%clk 0:02:53]} 4. Nf3 {[%clk 0:02:54]}  Bg7 {[%clk 0:02:52]} 5. O-O {[%clk 0:02:54]}  e6 {[%clk 0:02:52]} 6. c3 {[%clk 0:02:55]}  Nge7 {[%clk 0:02:47]} 7. d4 {[%clk 0:02:55]}  cxd4 {[%clk 0:02:38]} 8. cxd4 {[%clk 0:02:56]}  d5 {[%clk 0:02:34]} 9. e5 {[%clk 0:02:55]}  Qb6 {[%clk 0:02:31]} 10. Nc3 {[%clk 0:02:53]}  Nf5 {[%clk 0:02:30]} 11. Na4 {[%clk 0:02:53]}  Qc7 {[%clk 0:02:22]} 12. g4 {[%clk 0:02:48]}  Nfe7 {[%clk 0:02:21]} 13. Be3 {[%clk 0:02:48]}  h5 {[%clk 0:02:20]} 14. h3 {[%clk 0:02:49]}  Bd7 {[%clk 0:02:17]} 15. Rc1 {[%clk 0:02:46]}  b6 {[%clk 0:01:44]} 16. a3 {[%clk 0:02:43]}  Qb7 {[%clk 0:01:43]} 17. Nc3 {[%clk 0:02:37]}  a6 {[%clk 0:01:36]} 18. Bd3 {[%clk 0:02:29]}  b5 {[%clk 0:01:35]} 19. Ne2 {[%clk 0:02:24]}  Na5 {[%clk 0:01:33]} 20. b3 {[%clk 0:02:21]}  Rc8 {[%clk 0:01:31]} 21. Rxc8+ {[%clk 0:02:05]}  Nxc8 {[%clk 0:01:32]} 22. f5 {[%clk 0:01:59]}  hxg4 {[%clk 0:01:26]} 23. hxg4 {[%clk 0:01:58]}  gxf5 {[%clk 0:01:26]} 24. gxf5 {[%clk 0:01:59]}  Bf8 {[%clk 0:01:25]} 25. Ng5 {[%clk 0:01:37]}  Rg8 {[%clk 0:01:20]} 26. Ng3 {[%clk 0:01:13]}  Be7 {[%clk 0:00:56]} 27. Qh5 {[%clk 0:01:09]}  Bxg5 {[%clk 0:00:55]} 28. Bxg5 {[%clk 0:01:10]}  Nxb3 {[%clk 0:00:51]} 29. Qh7 {[%clk 0:01:03]}  Rf8 {[%clk 0:00:39]} 30. Bh6 {[%clk 0:01:03]}  Qb6 {[%clk 0:00:35]} 31. Bxf8 {[%clk 0:00:56]}  Qxd4+ {[%clk 0:00:35]} 32. Kg2 {[%clk 0:00:54]}  Qxd3 {[%clk 0:00:31]} 33. Qh8 {[%clk 0:00:54]}  Bc6 {[%clk 0:00:25]} 34. Bd6+ {[%clk 0:00:50]}  Kd7 {[%clk 0:00:25]} 35. fxe6+ {[%clk 0:00:50]}  Kxe6 {[%clk 0:00:22]} 36. Rf6+ {[%clk 0:00:48]}  Kd7 {[%clk 0:00:22]} 37. Rxf7+ {[%clk 0:00:48]}  Ke6 {[%clk 0:00:23]} 38. Qf6# {[%clk 0:00:48]} 1-0


[Site "https://www.chess.com"]

[Event "Titled Tuesday Blitz July 18 Early 2023"]
[White "Moskvin, Anatoly"]
[Black "Spata, German"]
[WhiteFideId "24199990"]
[BlackFideId "113026"]
[WhiteElo "2559"]
[BlackElo "2653"]
[Result "1-0"]
[Round "7"]
[TimeControl "180+2"]
[Date "2023.07.18"]
[WhiteClock "0:00:06"]
[BlackClock "0:00:26"]
[Board "68"]

1. e4 {[%clk 0:03:00]}  e6 {[%clk 0:03:00]} 2. Nf3 {[%clk 0:03:01]}  d5 {[%clk 0:03:01]} 3. e5 {[%clk 0:03:01]}  a5 {[%clk 0:03:01]} 4. a4 {[%clk 0:02:56]}  c5 {[%clk 0:03:01]} 5. Bb5+ {[%clk 0:02:42]}  Bd7 {[%clk 0:03:00]} 6. O-O {[%clk 0:02:41]}  Nc6 {[%clk 0:03:00]} 7. Bxc6 {[%clk 0:02:29]}  bxc6 {[%clk 0:02:56]} 8. d3 {[%clk 0:02:26]}  Ne7 {[%clk 0:02:56]} 9. Re1 {[%clk 0:02:20]}  Ng6 {[%clk 0:02:56]} 10. g3 {[%clk 0:02:16]}  Be7 {[%clk 0:02:55]} 11. h4 {[%clk 0:02:15]}  O-O {[%clk 0:02:55]} 12. h5 {[%clk 0:02:15]}  Nh8 {[%clk 0:02:55]} 13. Nbd2 {[%clk 0:02:08]}  f5 {[%clk 0:02:53]} 14. exf6 {[%clk 0:01:53]}  Bxf6 {[%clk 0:02:52]} 15. Nf1 {[%clk 0:01:38]}  Nf7 {[%clk 0:02:48]} 16. Be3 {[%clk 0:01:11]}  Qb6 {[%clk 0:02:41]} 17. d4 {[%clk 0:01:05]}  c4 {[%clk 0:02:36]} 18. N1h2 {[%clk 0:00:57]}  Nd6 {[%clk 0:02:23]} 19. h6 {[%clk 0:00:42]}  g6 {[%clk 0:02:23]} 20. Ng4 {[%clk 0:00:42]}  Nf5 {[%clk 0:02:07]} 21. Nxf6+ {[%clk 0:00:40]}  Rxf6 {[%clk 0:02:08]} 22. Bg5 {[%clk 0:00:40]}  Rf7 {[%clk 0:02:03]} 23. Qd2 {[%clk 0:00:31]}  Nxg3 {[%clk 0:01:52]} 24. Ne5 {[%clk 0:00:30]}  Nf5 {[%clk 0:01:43]} 25. Nxf7 {[%clk 0:00:20]}  Kxf7 {[%clk 0:01:43]} 26. c3 {[%clk 0:00:20]}  Rb8 {[%clk 0:01:36]} 27. Re2 {[%clk 0:00:20]}  Re8 {[%clk 0:01:30]} 28. Qf4 {[%clk 0:00:19]}  Qb8 {[%clk 0:01:29]} 29. Qd2 {[%clk 0:00:15]}  Qd6 {[%clk 0:01:27]} 30. Rae1 {[%clk 0:00:15]}  Qc7 {[%clk 0:01:21]} 31. f4 {[%clk 0:00:13]}  Ng3 {[%clk 0:01:17]} 32. Re5 {[%clk 0:00:12]}  Nf5 {[%clk 0:01:17]} 33. Qd1 {[%clk 0:00:11]}  Rb8 {[%clk 0:01:14]} 34. R1e2 {[%clk 0:00:06]}  Rb3 {[%clk 0:01:11]} 35. Qf1 {[%clk 0:00:06]}  Qb8 {[%clk 0:01:10]} 36. Qg2 {[%clk 0:00:05]}  Qg8 {[%clk 0:01:05]} 37. Qf1 {[%clk 0:00:05]}  Qb8 {[%clk 0:01:04]} 38. Qg2 {[%clk 0:00:06]}  Qa8 {[%clk 0:01:01]} 39. Qf2 {[%clk 0:00:06]}  Qa7 {[%clk 0:01:00]} 40. Qf3 {[%clk 0:00:06]}  c5 {[%clk 0:00:59]} 41. Rxf5+ {[%clk 0:00:06]}  gxf5 {[%clk 0:00:59]} 42. Qh5+ {[%clk 0:00:06]}  Kf8 {[%clk 0:00:57]} 43. Bf6 {[%clk 0:00:04]}  Be8 {[%clk 0:00:40]} 44. Bg7+ {[%clk 0:00:02]}  Ke7 {[%clk 0:00:41]} 45. Qg5+ {[%clk 0:00:03]}  Kd7 {[%clk 0:00:40]} 46. Qf6 {[%clk 0:00:03]}  cxd4 {[%clk 0:00:39]} 47. Qxe6+ {[%clk 0:00:04]}  Kc7 {[%clk 0:00:39]} 48. Bxd4 {[%clk 0:00:05]}  Bd7 {[%clk 0:00:35]} 49. Qe5+ {[%clk 0:00:05]}  Kb7 {[%clk 0:00:36]} 50. Bxa7 {[%clk 0:00:05]}  Kxa7 {[%clk 0:00:26]} 51. Qd6 {[%clk 0:00:06]} 1-0


[Site "https://www.chess.com"]

[Event "Titled Tuesday Blitz July 18 Early 2023"]
[White "Sahib Singh"]
[Black "Arencibia Monduy, Antonio"]
[WhiteFideId "25618342"]
[BlackFideId "3507939"]
[WhiteElo "2653"]
[BlackElo "2556"]
[Result "1-0"]
[Round "7"]
[TimeControl "180+2"]
[Date "2023.07.18"]
[WhiteClock "0:01:53"]
[BlackClock "0:00:28"]
[Board "69"]

1. e4 {[%clk 0:03:00]}  e6 {[%clk 0:02:59]} 2. d4 {[%clk 0:02:58]}  d5 {[%clk 0:02:59]} 3. Nd2 {[%clk 0:02:58]}  dxe4 {[%clk 0:03:00]} 4. Nxe4 {[%clk 0:02:59]}  Nd7 {[%clk 0:03:00]} 5. Nf3 {[%clk 0:02:58]}  Ngf6 {[%clk 0:03:01]} 6. Neg5 {[%clk 0:02:58]}  Be7 {[%clk 0:02:53]} 7. Bd3 {[%clk 0:02:54]}  O-O {[%clk 0:02:45]} 8. Ne5 {[%clk 0:02:25]}  Nb6 {[%clk 0:02:05]} 9. c3 {[%clk 0:02:20]}  h6 {[%clk 0:01:58]} 10. h4 {[%clk 0:02:19]}  c5 {[%clk 0:01:58]} 11. Qc2 {[%clk 0:02:19]}  Qe8 {[%clk 0:01:46]} 12. Bh7+ {[%clk 0:01:58]}  Kh8 {[%clk 0:01:45]} 13. Ngxf7+ {[%clk 0:01:56]}  Rxf7 {[%clk 0:01:45]} 14. Bg6 {[%clk 0:01:55]}  Qb5 {[%clk 0:00:33]} 15. Bxf7 {[%clk 0:01:52]}  cxd4 {[%clk 0:00:32]} 16. Ng6+ {[%clk 0:01:52]}  Kh7 {[%clk 0:00:32]} 17. Nf8+ {[%clk 0:01:53]}  Kh8 {[%clk 0:00:28]} 18. Qh7+ {[%clk 0:01:53]} 1-0


[Site "https://www.chess.com"]

[Event "Titled Tuesday Blitz July 18 Early 2023"]
[White "Mortazavi, Ali"]
[Black "Kuzhilniy, Oleksandr"]
[WhiteFideId "401323"]
[BlackFideId "34110500"]
[WhiteElo "2524"]
[BlackElo "2628"]
[Result "0-1"]
[Round "7"]
[TimeControl "180+2"]
[Date "2023.07.18"]
[WhiteClock "0:00:10"]
[BlackClock "0:00:15"]
[Board "72"]

1. Nf3 {[%clk 0:03:00]}  Nf6 {[%clk 0:03:00]} 2. g3 {[%clk 0:03:01]}  b6 {[%clk 0:02:58]} 3. Bg2 {[%clk 0:03:02]}  Bb7 {[%clk 0:02:58]} 4. O-O {[%clk 0:03:02]}  g6 {[%clk 0:02:58]} 5. d3 {[%clk 0:03:03]}  Bg7 {[%clk 0:02:58]} 6. e4 {[%clk 0:03:03]}  e6 {[%clk 0:02:56]} 7. a4 {[%clk 0:02:56]}  d5 {[%clk 0:02:54]} 8. e5 {[%clk 0:02:53]}  Nfd7 {[%clk 0:02:54]} 9. Re1 {[%clk 0:02:51]}  c5 {[%clk 0:02:53]} 10. c3 {[%clk 0:02:41]}  Nc6 {[%clk 0:02:51]} 11. Bf4 {[%clk 0:02:40]}  Rc8 {[%clk 0:02:34]} 12. h4 {[%clk 0:02:39]}  h6 {[%clk 0:02:32]} 13. Na3 {[%clk 0:02:30]}  a6 {[%clk 0:02:30]} 14. Nc2 {[%clk 0:02:27]}  Qc7 {[%clk 0:02:28]} 15. d4 {[%clk 0:02:24]}  cxd4 {[%clk 0:02:25]} 16. Ncxd4 {[%clk 0:02:05]}  Nxd4 {[%clk 0:02:16]} 17. cxd4 {[%clk 0:02:03]}  Qc2 {[%clk 0:02:10]} 18. Rc1 {[%clk 0:02:02]}  Qxd1 {[%clk 0:02:10]} 19. Rexd1 {[%clk 0:02:02]}  Ke7 {[%clk 0:02:08]} 20. Bd2 {[%clk 0:01:53]}  Rxc1 {[%clk 0:02:05]} 21. Rxc1 {[%clk 0:01:53]}  Rc8 {[%clk 0:02:05]} 22. Rxc8 {[%clk 0:01:49]}  Bxc8 {[%clk 0:02:05]} 23. Ne1 {[%clk 0:01:45]}  h5 {[%clk 0:02:00]} 24. Bf1 {[%clk 0:01:41]}  Nb8 {[%clk 0:01:58]} 25. Nc2 {[%clk 0:01:30]}  Kd7 {[%clk 0:01:54]} 26. Be2 {[%clk 0:01:17]}  Kc7 {[%clk 0:01:52]} 27. f3 {[%clk 0:01:17]}  a5 {[%clk 0:01:44]} 28. Na3 {[%clk 0:01:07]}  Bf8 {[%clk 0:01:39]} 29. Nb5+ {[%clk 0:01:07]}  Kd7 {[%clk 0:01:39]} 30. g4 {[%clk 0:01:05]}  Be7 {[%clk 0:01:37]} 31. Be1 {[%clk 0:01:03]}  Nc6 {[%clk 0:01:32]} 32. gxh5 {[%clk 0:01:00]}  gxh5 {[%clk 0:01:32]} 33. f4 {[%clk 0:01:00]}  Ba6 {[%clk 0:01:32]} 34. Bf2 {[%clk 0:00:52]}  Na7 {[%clk 0:01:11]} 35. Bxh5 {[%clk 0:00:49]}  Nxb5 {[%clk 0:01:02]} 36. axb5 {[%clk 0:00:50]}  Bxb5 {[%clk 0:01:02]} 37. Bxf7 {[%clk 0:00:50]}  Bd3 {[%clk 0:01:03]} 38. Be1 {[%clk 0:00:41]}  a4 {[%clk 0:01:02]} 39. h5 {[%clk 0:00:41]}  b5 {[%clk 0:01:00]} 40. h6 {[%clk 0:00:33]}  Bh7 {[%clk 0:00:57]} 41. Kf1 {[%clk 0:00:25]}  Bf8 {[%clk 0:00:49]} 42. Ke2 {[%clk 0:00:24]}  Bxh6 {[%clk 0:00:48]} 43. Kf3 {[%clk 0:00:24]}  Bf8 {[%clk 0:00:47]} 44. Bh5 {[%clk 0:00:20]}  b4 {[%clk 0:00:45]} 45. Ke3 {[%clk 0:00:20]}  Bf5 {[%clk 0:00:38]} 46. Bd1 {[%clk 0:00:19]}  a3 {[%clk 0:00:36]} 47. bxa3 {[%clk 0:00:20]}  bxa3 {[%clk 0:00:37]} 48. Bb3 {[%clk 0:00:21]}  Kc6 {[%clk 0:00:37]} 49. Ba4+ {[%clk 0:00:17]}  Kb6 {[%clk 0:00:36]} 50. Bc3 {[%clk 0:00:18]}  Be7 {[%clk 0:00:32]} 51. Be8 {[%clk 0:00:16]}  a2 {[%clk 0:00:28]} 52. Ba4 {[%clk 0:00:15]}  Bb4 {[%clk 0:00:27]} 53. Ba1 {[%clk 0:00:14]}  Ka5 {[%clk 0:00:27]} 54. Bb3 {[%clk 0:00:15]}  Bb1 {[%clk 0:00:27]} 55. f5 {[%clk 0:00:13]}  Bxf5 {[%clk 0:00:17]} 56. Bxa2 {[%clk 0:00:13]}  Ka4 {[%clk 0:00:18]} 57. Bb2 {[%clk 0:00:14]}  Ba3 {[%clk 0:00:16]} 58. Bc3 {[%clk 0:00:13]}  Bc1+ {[%clk 0:00:14]} 59. Bd2 {[%clk 0:00:14]}  Bxd2+ {[%clk 0:00:15]} 60. Kxd2 {[%clk 0:00:14]}  Ka3 {[%clk 0:00:15]} 61. Bxd5 {[%clk 0:00:13]}  exd5 {[%clk 0:00:16]} 62. Ke3 {[%clk 0:00:12]}  Kb4 {[%clk 0:00:16]} 63. Kf4 {[%clk 0:00:13]}  Be6 {[%clk 0:00:16]} 64. Kg5 {[%clk 0:00:14]}  Kc4 {[%clk 0:00:15]} 65. Kf6 {[%clk 0:00:10]}  Bh3 {[%clk 0:00:15]} 0-1


[Site "https://www.chess.com"]

[Event "Titled Tuesday Blitz July 18 Early 2023"]
[White "Tregubov, Pavel V."]
[Black "Herzog2012"]
[WhiteFideId "4115341"]
[WhiteElo "2623"]
[BlackElo "2439"]
[Result "1-0"]
[Round "7"]
[TimeControl "180+2"]
[Date "2023.07.18"]
[WhiteClock "0:00:34"]
[BlackClock "0:00:00"]
[Board "74"]

1. e4 {[%clk 0:03:00]}  c5 {[%clk 0:02:59]} 2. Nf3 {[%clk 0:03:00]}  Nc6 {[%clk 0:02:59]} 3. Bb5 {[%clk 0:02:56]}  g6 {[%clk 0:02:58]} 4. O-O {[%clk 0:02:55]}  Bg7 {[%clk 0:02:56]} 5. c3 {[%clk 0:02:55]}  Nf6 {[%clk 0:02:56]} 6. Re1 {[%clk 0:02:55]}  O-O {[%clk 0:02:57]} 7. h3 {[%clk 0:02:55]}  Qb6 {[%clk 0:02:51]} 8. a4 {[%clk 0:02:54]}  a6 {[%clk 0:02:49]} 9. Bc4 {[%clk 0:02:53]}  d6 {[%clk 0:02:49]} 10. d4 {[%clk 0:02:45]}  cxd4 {[%clk 0:02:50]} 11. cxd4 {[%clk 0:02:45]}  Nd7 {[%clk 0:02:49]} 12. Nc3 {[%clk 0:02:28]}  h6 {[%clk 0:01:20]} 13. Nd5 {[%clk 0:02:18]}  Qd8 {[%clk 0:01:17]} 14. Be3 {[%clk 0:02:14]}  e6 {[%clk 0:01:13]} 15. Nc3 {[%clk 0:02:13]}  Qe7 {[%clk 0:00:58]} 16. Qd2 {[%clk 0:02:11]}  Kh7 {[%clk 0:00:57]} 17. Bf1 {[%clk 0:02:01]}  b6 {[%clk 0:00:51]} 18. Rad1 {[%clk 0:01:56]}  Bb7 {[%clk 0:00:45]} 19. d5 {[%clk 0:01:57]}  Nce5 {[%clk 0:00:44]} 20. Nxe5 {[%clk 0:01:56]}  Bxe5 {[%clk 0:00:41]} 21. Bxh6 {[%clk 0:01:35]}  Rfd8 {[%clk 0:00:31]} 22. Bg5 {[%clk 0:01:35]}  Bf6 {[%clk 0:00:30]} 23. Bxf6 {[%clk 0:01:22]}  Nxf6 {[%clk 0:00:29]} 24. dxe6 {[%clk 0:01:18]}  Qxe6 {[%clk 0:00:19]} 25. Qd4 {[%clk 0:01:16]}  Nd7 {[%clk 0:00:17]} 26. Bc4 {[%clk 0:01:13]}  Qe5 {[%clk 0:00:10]} 27. Bxf7 {[%clk 0:01:11]}  Qxd4 {[%clk 0:00:09]} 28. Rxd4 {[%clk 0:01:11]}  Ne5 {[%clk 0:00:10]} 29. Bd5 {[%clk 0:01:10]}  Bxd5 {[%clk 0:00:08]} 30. Nxd5 {[%clk 0:01:10]}  b5 {[%clk 0:00:06]} 31. Rc1 {[%clk 0:01:02]}  Rac8 {[%clk 0:00:05]} 32. Rxc8 {[%clk 0:00:59]}  Rxc8 {[%clk 0:00:06]} 33. Nf6+ {[%clk 0:00:58]}  Kg7 {[%clk 0:00:06]} 34. Rxd6 {[%clk 0:00:57]}  bxa4 {[%clk 0:00:04]} 35. Rxa6 {[%clk 0:00:56]}  Nc4 {[%clk 0:00:02]} 36. f4 {[%clk 0:00:43]}  Nxb2 {[%clk 0:00:02]} 37. e5 {[%clk 0:00:43]}  Rc1+ {[%clk 0:00:02]} 38. Kh2 {[%clk 0:00:43]}  Nd3 {[%clk 0:00:03]} 39. Rxa4 {[%clk 0:00:40]}  Nf2 {[%clk 0:00:03]} 40. Ra7+ {[%clk 0:00:37]}  Kf8 {[%clk 0:00:01]} 41. e6 {[%clk 0:00:35]}  Rh1+ {[%clk 0:00:00]} 42. Kg3 {[%clk 0:00:34]} 1-0


[Site "https://www.chess.com"]

[Event "Titled Tuesday Blitz July 18 Early 2023"]
[White "Vaibhav Jayant Raut"]
[Black "favesaul"]
[WhiteFideId "5089034"]
[WhiteElo "2608"]
[BlackElo "2437"]
[Result "1-0"]
[Round "7"]
[TimeControl "180+2"]
[Date "2023.07.18"]
[WhiteClock "0:00:04"]
[BlackClock "0:00:00"]
[Board "75"]

1. e4 {[%clk 0:03:00]}  c5 {[%clk 0:02:56]} 2. Nf3 {[%clk 0:03:00]}  e6 {[%clk 0:02:56]} 3. d4 {[%clk 0:03:00]}  cxd4 {[%clk 0:02:55]} 4. Nxd4 {[%clk 0:03:01]}  Nc6 {[%clk 0:02:56]} 5. Nc3 {[%clk 0:03:01]}  d6 {[%clk 0:02:55]} 6. Be3 {[%clk 0:03:00]}  Nf6 {[%clk 0:02:55]} 7. Qd2 {[%clk 0:02:56]}  a6 {[%clk 0:02:49]} 8. f3 {[%clk 0:02:55]}  h5 {[%clk 0:02:47]} 9. O-O-O {[%clk 0:02:53]}  Bd7 {[%clk 0:02:47]} 10. Qf2 {[%clk 0:02:48]}  b5 {[%clk 0:02:28]} 11. Bxb5 {[%clk 0:02:17]}  axb5 {[%clk 0:02:27]} 12. Ndxb5 {[%clk 0:02:18]}  Be7 {[%clk 0:02:02]} 13. Bb6 {[%clk 0:02:08]}  Qb8 {[%clk 0:02:02]} 14. Nc7+ {[%clk 0:01:52]}  Kf8 {[%clk 0:02:02]} 15. Nxa8 {[%clk 0:01:52]}  Qxa8 {[%clk 0:02:03]} 16. Rd2 {[%clk 0:01:45]}  Qb7 {[%clk 0:01:48]} 17. Rhd1 {[%clk 0:01:41]}  Ne5 {[%clk 0:01:43]} 18. Qd4 {[%clk 0:01:26]}  Qc6 {[%clk 0:01:41]} 19. b3 {[%clk 0:01:13]}  g5 {[%clk 0:01:34]} 20. Ba5 {[%clk 0:01:07]}  Kg7 {[%clk 0:01:18]} 21. Qb6 {[%clk 0:01:06]}  Qxb6 {[%clk 0:01:08]} 22. Bxb6 {[%clk 0:01:05]}  Rc8 {[%clk 0:01:09]} 23. Bd4 {[%clk 0:00:59]}  Be8 {[%clk 0:01:00]} 24. Ne2 {[%clk 0:00:50]}  Nfd7 {[%clk 0:00:40]} 25. h4 {[%clk 0:00:48]}  f6 {[%clk 0:00:38]} 26. f4 {[%clk 0:00:45]}  gxf4 {[%clk 0:00:37]} 27. Nxf4 {[%clk 0:00:46]}  Bf7 {[%clk 0:00:36]} 28. a4 {[%clk 0:00:40]}  Nc5 {[%clk 0:00:35]} 29. Bxc5 {[%clk 0:00:38]}  Rxc5 {[%clk 0:00:36]} 30. Nd3 {[%clk 0:00:29]}  Nxd3+ {[%clk 0:00:35]} 31. Rxd3 {[%clk 0:00:30]}  d5 {[%clk 0:00:36]} 32. exd5 {[%clk 0:00:20]}  exd5 {[%clk 0:00:37]} 33. Rg3+ {[%clk 0:00:16]}  Kh7 {[%clk 0:00:35]} 34. Rf3 {[%clk 0:00:15]}  Bg6 {[%clk 0:00:33]} 35. c3 {[%clk 0:00:14]}  Be4 {[%clk 0:00:33]} 36. Re3 {[%clk 0:00:12]}  Bd6 {[%clk 0:00:33]} 37. Kb2 {[%clk 0:00:10]}  Bf4 {[%clk 0:00:32]} 38. Rh3 {[%clk 0:00:09]}  Kg6 {[%clk 0:00:31]} 39. b4 {[%clk 0:00:08]}  Rc7 {[%clk 0:00:29]} 40. a5 {[%clk 0:00:09]}  Be5 {[%clk 0:00:28]} 41. Re3 {[%clk 0:00:08]}  Bf5 {[%clk 0:00:16]} 42. Rxd5 {[%clk 0:00:06]}  Be6 {[%clk 0:00:08]} 43. Rdxe5 {[%clk 0:00:06]}  fxe5 {[%clk 0:00:07]} 44. Rxe5 {[%clk 0:00:07]}  Bf5 {[%clk 0:00:08]} 45. a6 {[%clk 0:00:06]}  Kf6 {[%clk 0:00:08]} 46. Ra5 {[%clk 0:00:05]}  Be4 {[%clk 0:00:06]} 47. b5 {[%clk 0:00:05]}  Rc8 {[%clk 0:00:03]} 48. g3 {[%clk 0:00:06]}  Ke6 {[%clk 0:00:03]} 49. c4 {[%clk 0:00:06]}  Kd6 {[%clk 0:00:03]} 50. b6 {[%clk 0:00:06]}  Re8 {[%clk 0:00:01]} 51. Rxh5 {[%clk 0:00:04]}  Kc6 {[%clk 0:00:01]} 52. Rh6+ {[%clk 0:00:05]}  Kc5 {[%clk 0:00:00]} 53. b7 {[%clk 0:00:04]} 1-0


[Site "https://www.chess.com"]

[Event "Titled Tuesday Blitz July 18 Early 2023"]
[White "Garsky, Vladyslav"]
[Black "Shukhman, Anna"]
[WhiteFideId "34100270"]
[BlackFideId "54180058"]
[WhiteElo "2429"]
[BlackElo "2603"]
[Result "1-0"]
[Round "7"]
[TimeControl "180+2"]
[Date "2023.07.18"]
[WhiteClock "0:01:24"]
[BlackClock "0:00:03"]
[Board "76"]

1. e4 {[%clk 0:03:00]}  c5 {[%clk 0:02:59]} 2. Nf3 {[%clk 0:02:57]}  a6 {[%clk 0:02:58]} 3. c3 {[%clk 0:02:55]}  d5 {[%clk 0:02:57]} 4. exd5 {[%clk 0:02:55]}  Qxd5 {[%clk 0:02:58]} 5. d4 {[%clk 0:02:56]}  e6 {[%clk 0:02:58]} 6. Be3 {[%clk 0:02:56]}  cxd4 {[%clk 0:02:56]} 7. Nxd4 {[%clk 0:02:56]}  Nf6 {[%clk 0:02:55]} 8. Be2 {[%clk 0:02:56]}  e5 {[%clk 0:02:52]} 9. Nf3 {[%clk 0:02:54]}  Qxd1+ {[%clk 0:02:52]} 10. Bxd1 {[%clk 0:02:55]}  Nc6 {[%clk 0:02:52]} 11. Nbd2 {[%clk 0:02:55]}  Be6 {[%clk 0:02:51]} 12. Bb3 {[%clk 0:02:55]}  Bxb3 {[%clk 0:02:49]} 13. Nxb3 {[%clk 0:02:55]}  Be7 {[%clk 0:02:46]} 14. Nc5 {[%clk 0:02:54]}  O-O {[%clk 0:02:46]} 15. Nb3 {[%clk 0:02:43]}  Nd5 {[%clk 0:02:44]} 16. Bd2 {[%clk 0:02:42]}  a5 {[%clk 0:02:40]} 17. a4 {[%clk 0:02:41]}  e4 {[%clk 0:02:31]} 18. Nfd4 {[%clk 0:02:40]}  Bf6 {[%clk 0:02:31]} 19. Nxc6 {[%clk 0:02:39]}  bxc6 {[%clk 0:02:32]} 20. O-O-O {[%clk 0:02:39]}  Be7 {[%clk 0:02:22]} 21. Nd4 {[%clk 0:02:34]}  Rfc8 {[%clk 0:02:19]} 22. Rhe1 {[%clk 0:02:31]}  Nf6 {[%clk 0:02:18]} 23. Nf5 {[%clk 0:02:27]}  Bc5 {[%clk 0:02:14]} 24. Be3 {[%clk 0:02:27]}  Bf8 {[%clk 0:02:14]} 25. Bg5 {[%clk 0:02:27]}  Re8 {[%clk 0:02:02]} 26. Bxf6 {[%clk 0:02:25]}  gxf6 {[%clk 0:02:02]} 27. Nd6 {[%clk 0:02:23]}  Bxd6 {[%clk 0:02:02]} 28. Rxd6 {[%clk 0:02:22]}  Rac8 {[%clk 0:01:51]} 29. Rxf6 {[%clk 0:02:20]}  Re5 {[%clk 0:01:52]} 30. Re3 {[%clk 0:02:16]}  Kf8 {[%clk 0:01:45]} 31. Rh6 {[%clk 0:02:15]}  Kg7 {[%clk 0:01:41]} 32. Rd6 {[%clk 0:02:14]}  f5 {[%clk 0:01:39]} 33. Rg3+ {[%clk 0:02:14]}  Kf7 {[%clk 0:01:36]} 34. Rd7+ {[%clk 0:02:15]}  Re7 {[%clk 0:01:24]} 35. Rxe7+ {[%clk 0:02:14]}  Kxe7 {[%clk 0:01:25]} 36. Rg7+ {[%clk 0:02:15]}  Kf6 {[%clk 0:01:25]} 37. Rxh7 {[%clk 0:02:15]}  f4 {[%clk 0:01:15]} 38. Rh5 {[%clk 0:02:10]}  c5 {[%clk 0:01:14]} 39. g3 {[%clk 0:02:01]}  f3 {[%clk 0:00:47]} 40. Kd2 {[%clk 0:01:59]}  Rb8 {[%clk 0:00:48]} 41. Ke3 {[%clk 0:01:54]}  Rxb2 {[%clk 0:00:46]} 42. Kxe4 {[%clk 0:01:54]}  Rxf2 {[%clk 0:00:45]} 43. g4 {[%clk 0:01:48]}  Rc2 {[%clk 0:00:38]} 44. Kxf3 {[%clk 0:01:47]}  Rxc3+ {[%clk 0:00:38]} 45. Kf4 {[%clk 0:01:46]}  Rc4+ {[%clk 0:00:38]} 46. Kg3 {[%clk 0:01:47]}  Rc3+ {[%clk 0:00:32]} 47. Kh4 {[%clk 0:01:46]}  c4 {[%clk 0:00:32]} 48. Rxa5 {[%clk 0:01:45]}  Rc2 {[%clk 0:00:30]} 49. h3 {[%clk 0:01:43]}  Ra2 {[%clk 0:00:30]} 50. g5+ {[%clk 0:01:37]}  Kg6 {[%clk 0:00:29]} 51. Ra6+ {[%clk 0:01:35]}  Kf5 {[%clk 0:00:29]} 52. a5 {[%clk 0:01:33]}  c3 {[%clk 0:00:28]} 53. Rf6+ {[%clk 0:01:31]}  Ke4 {[%clk 0:00:23]} 54. Rc6 {[%clk 0:01:32]}  Kd3 {[%clk 0:00:15]} 55. g6 {[%clk 0:01:32]}  Ra4+ {[%clk 0:00:10]} 56. Kh5 {[%clk 0:01:32]}  Rxa5+ {[%clk 0:00:09]} 57. Kh6 {[%clk 0:01:33]}  Ra1 {[%clk 0:00:09]} 58. h4 {[%clk 0:01:32]}  Rh1 {[%clk 0:00:02]} 59. h5 {[%clk 0:01:31]}  c2 {[%clk 0:00:02]} 60. g7 {[%clk 0:01:32]}  Rg1 {[%clk 0:00:02]} 61. Kh7 {[%clk 0:01:28]}  Kd2 {[%clk 0:00:02]} 62. Rxc2+ {[%clk 0:01:24]}  Kxc2 {[%clk 0:00:02]} 63. g8=Q {[%clk 0:01:25]}  Kd3 {[%clk 0:00:03]} 64. Qxg1 {[%clk 0:01:24]} 1-0


[Site "https://www.chess.com"]